[Event "Early-Titled-Tuesday-Blitz-October-17-2023"]
[Site "Chess.com"]
[Date "2023.10.17"]
[Round "4"]
[White "Dewarfd"]
[Black "balachess2006"]
[Result "0-1"]
[WhiteElo "2196"]
[BlackElo "2608"]
[TimeControl "180+1"]
[EndTime "8:44:00 PDT"]
[Termination "balachess2006 won on time"]

1. d4 {[%clk 0:03:00]} 1... Nf6 {[%clk 0:03:00.1]} 2. e3 {[%clk 0:03:00.5]} 2...
g6 {[%clk 0:02:59.8]} 3. Nf3 {[%clk 0:02:59.6]} 3... Bg7 {[%clk 0:02:59.3]} 4.
Be2 {[%clk 0:03:00.5]} 4... O-O {[%clk 0:02:56.5]} 5. b4 {[%clk 0:03:00.6]} 5...
d6 {[%clk 0:02:53.1]} 6. Bb2 {[%clk 0:02:59.4]} 6... b6 {[%clk 0:02:53.2]} 7.
O-O {[%clk 0:02:59.3]} 7... Bb7 {[%clk 0:02:53.4]} 8. c4 {[%clk 0:02:59.7]} 8...
e6 {[%clk 0:02:49.6]} 9. a4 {[%clk 0:02:59.6]} 9... a5 {[%clk 0:02:49.7]} 10. b5
{[%clk 0:02:59.3]} 10... Nbd7 {[%clk 0:02:50]} 11. Nc3 {[%clk 0:02:55.7]} 11...
Re8 {[%clk 0:02:49.8]} 12. Qc2 {[%clk 0:02:56.1]} 12... e5 {[%clk 0:02:47.7]}
13. Rfd1 {[%clk 0:02:54.2]} 13... exd4 {[%clk 0:02:46]} 14. Nxd4 {[%clk
0:02:54.3]} 14... Nc5 {[%clk 0:02:45.2]} 15. Bf3 {[%clk 0:02:52.8]} 15... Nfe4
{[%clk 0:02:44.2]} 16. Nxe4 {[%clk 0:02:52.7]} 16... Nxe4 {[%clk 0:02:44.6]} 17.
Nc6 {[%clk 0:02:44.2]} 17... Bxc6 {[%clk 0:02:43.7]} 18. Bxg7 {[%clk 0:02:33.6]}
18... Kxg7 {[%clk 0:02:44.6]} 19. bxc6 {[%clk 0:02:33.2]} 19... Nc5 {[%clk
0:02:44.4]} 20. Rd5 {[%clk 0:02:28.7]} 20... Qf6 {[%clk 0:02:44.2]} 21. Rad1
{[%clk 0:02:27.3]} 21... Re5 {[%clk 0:02:44.1]} 22. h3 {[%clk 0:02:24]} 22...
Rae8 {[%clk 0:02:42.8]} 23. R1d2 {[%clk 0:02:12.7]} 23... h5 {[%clk 0:02:41.9]}
24. Rd1 {[%clk 0:02:10.4]} 24... Rg5 {[%clk 0:02:36.7]} 25. Rxg5 {[%clk
0:02:07.3]} 25... Qxg5 {[%clk 0:02:37.6]} 26. Rd5 {[%clk 0:02:06]} 26... Re5
{[%clk 0:02:36.2]} 27. Rd4 {[%clk 0:01:50.4]} 27... Rf5 {[%clk 0:02:31.8]} 28.
Qc3 {[%clk 0:01:33.1]} 28... Kh7 {[%clk 0:02:28.2]} 29. Bd1 {[%clk 0:01:18.2]}
29... Qf6 {[%clk 0:01:41.1]} 30. f3 {[%clk 0:01:00.1]} 30... Ne6 {[%clk
0:01:31.1]} 31. Rd3 {[%clk 0:00:58.6]} 31... Qxc3 {[%clk 0:01:30.7]} 32. Rxc3
{[%clk 0:00:59.5]} 32... Nc5 {[%clk 0:01:26.1]} 33. Bc2 {[%clk 0:00:59.1]} 33...
Re5 {[%clk 0:01:26.5]} 34. e4 {[%clk 0:00:53]} 34... h4 {[%clk 0:01:23.5]} 35.
Kf2 {[%clk 0:00:53.2]} 35... g5 {[%clk 0:01:20.8]} 36. g3 {[%clk 0:00:53.3]}
36... hxg3+ {[%clk 0:01:20.1]} 37. Kxg3 {[%clk 0:00:53.7]} 37... f6 {[%clk
0:01:20.4]} 38. Kg4 {[%clk 0:00:54.1]} 38... Ne6 {[%clk 0:01:17]} 39. h4 {[%clk
0:00:51.5]} 39... Kg7 {[%clk 0:01:09.2]} 40. hxg5 {[%clk 0:00:50.4]} 40... Rxg5+
{[%clk 0:01:10.1]} 41. Kh3 {[%clk 0:00:50.4]} 41... Nf4+ {[%clk 0:01:10.6]} 42.
Kh2 {[%clk 0:00:50.9]} 42... Rg2+ {[%clk 0:01:10.6]} 43. Kh1 {[%clk 0:00:50.6]}
43... Rd2 {[%clk 0:01:07.7]} 44. Bb3 {[%clk 0:00:27.6]} 44... Kh6 {[%clk
0:01:05.5]} 45. Rc2 {[%clk 0:00:27.3]} 45... Rd1+ {[%clk 0:01:02.8]} 46. Kh2
{[%clk 0:00:27]} 46... Rd3 {[%clk 0:01:03.3]} 47. Rb2 {[%clk 0:00:23.4]} 47...
Rxf3 {[%clk 0:01:01.9]} 48. Ba2 {[%clk 0:00:24]} 48... Re3 {[%clk 0:00:57.4]}
49. Rxb6 {[%clk 0:00:23.6]} 49... Re2+ {[%clk 0:00:56.6]} 50. Kg3 {[%clk
0:00:24.3]} 50... Nh5+ {[%clk 0:00:51.8]} 51. Kg4 {[%clk 0:00:24.4]} 51... Rxa2
{[%clk 0:00:49.8]} 52. Rb7 {[%clk 0:00:24.5]} 52... Rg2+ {[%clk 0:00:49.6]} 53.
Kf5 {[%clk 0:00:24.3]} 53... Rg7 {[%clk 0:00:48.1]} 54. Ra7 {[%clk 0:00:21.3]}
54... Ng3+ {[%clk 0:00:46.8]} 55. Ke6 {[%clk 0:00:21.6]} 55... Nxe4 {[%clk
0:00:46.6]} 56. Rxa5 {[%clk 0:00:21.4]} 56... Nc5+ {[%clk 0:00:46.3]} 57. Kxf6
{[%clk 0:00:19]} 57... Rg5 {[%clk 0:00:33.9]} 58. Ra7 {[%clk 0:00:16.1]} 58...
Rg4 {[%clk 0:00:29.1]} 59. Rxc7 {[%clk 0:00:13]} 59... Rg6+ {[%clk 0:00:25.9]}
60. Kf5 {[%clk 0:00:11.5]} 60... Rg5+ {[%clk 0:00:26.1]} 61. Kf6 {[%clk
0:00:12]} 61... Nxa4 {[%clk 0:00:15.8]} 62. Rc8 {[%clk 0:00:12.5]} 62... Rg6+
{[%clk 0:00:14.9]} 63. Kf5 {[%clk 0:00:10.9]} 63... Nc5 {[%clk 0:00:05.3]} 64.
c7 {[%clk 0:00:11.1]} 64... Rg5+ {[%clk 0:00:05]} 65. Kf6 {[%clk 0:00:11.3]}
65... Rg6+ {[%clk 0:00:05.3]} 66. Kf5 {[%clk 0:00:11.8]} 66... Rg5+ {[%clk
0:00:05.5]} 67. Kf6 {[%clk 0:00:12.1]} 67... Ne4+ {[%clk 0:00:06]} 68. Ke7
{[%clk 0:00:11.7]} 68... Re5+ {[%clk 0:00:06.6]} 69. Kd7 {[%clk 0:00:11.6]}
69... Kg7 {[%clk 0:00:06]} 70. Rg8+ {[%clk 0:00:09.5]} 70... Kxg8 {[%clk
0:00:06.5]} 71. c8=Q+ {[%clk 0:00:10]} 71... Kg7 {[%clk 0:00:07.4]} 72. Qa6
{[%clk 0:00:07.1]} 72... Kf6 {[%clk 0:00:07]} 73. Qa1 {[%clk 0:00:06.5]} 73...
Kf5 {[%clk 0:00:06.2]} 74. Kc6 {[%clk 0:00:07.2]} 74... Rc5+ {[%clk 0:00:05.7]}
75. Kb6 {[%clk 0:00:07.7]} 75... Ke6 {[%clk 0:00:03]} 76. Qc1 {[%clk 0:00:06.1]}
76... Re5 {[%clk 0:00:03.9]} 77. Qh6+ {[%clk 0:00:06.1]} 77... Nf6 {[%clk
0:00:04]} 78. Qh3+ {[%clk 0:00:05.8]} 78... Ke7 {[%clk 0:00:03.9]} 79. Kc6
{[%clk 0:00:05.6]} 79... Rc5+ {[%clk 0:00:04]} 80. Kb6 {[%clk 0:00:05.3]} 80...
Rxc4 {[%clk 0:00:04.3]} 81. Qe3+ {[%clk 0:00:02.8]} 81... Re4 {[%clk 0:00:04.7]}
82. Qa3 {[%clk 0:00:02.2]} 82... Ke6 {[%clk 0:00:05.6]} 83. Qa2+ {[%clk
0:00:02.5]} 83... Ke5 {[%clk 0:00:05.9]} 84. Qf7 {[%clk 0:00:02.4]} 84... d5
{[%clk 0:00:05.9]} 85. Qe7+ {[%clk 0:00:02]} 85... Kf5 {[%clk 0:00:06.3]} 86.
Qd7+ {[%clk 0:00:02.7]} 86... Kf4 {[%clk 0:00:06]} 87. Qd6+ {[%clk 0:00:02.7]}
87... Kf5 {[%clk 0:00:06.1]} 0-1

[Event "Early-Titled-Tuesday-Blitz-October-17-2023"]
[Site "Chess.com"]
[Date "2023.10.17"]
[Round "4"]
[White "tusplingher"]
[Black "PeshkaCh"]
[Result "1/2-1/2"]
[WhiteElo "2519"]
[BlackElo "2816"]
[TimeControl "180+1"]
[EndTime "8:44:09 PDT"]
[Termination "Game drawn by 50-move rule"]

1. e4 {[%clk 0:03:00.9]} 1... e5 {[%clk 0:03:00]} 2. Nf3 {[%clk 0:03:00.4]} 2...
Nc6 {[%clk 0:03:00.6]} 3. Bb5 {[%clk 0:03:00]} 3... a6 {[%clk 0:03:00.7]} 4. Ba4
{[%clk 0:02:57.7]} 4... Nge7 {[%clk 0:02:57.4]} 5. O-O {[%clk 0:02:53.5]} 5...
Ng6 {[%clk 0:02:57.8]} 6. c3 {[%clk 0:02:40.4]} 6... d5 {[%clk 0:02:57.9]} 7.
exd5 {[%clk 0:02:35.9]} 7... Qxd5 {[%clk 0:02:58.8]} 8. Bb3 {[%clk 0:02:12.2]}
8... Qd8 {[%clk 0:02:58.5]} 9. d4 {[%clk 0:02:10.2]} 9... Be7 {[%clk 0:02:50.1]}
10. Re1 {[%clk 0:02:04.5]} 10... O-O {[%clk 0:02:45.2]} 11. dxe5 {[%clk
0:02:00.6]} 11... Qxd1 {[%clk 0:02:45.1]} 12. Bxd1 {[%clk 0:02:00.1]} 12... Bg4
{[%clk 0:02:45]} 13. h3 {[%clk 0:01:57.3]} 13... Bxf3 {[%clk 0:02:45.2]} 14.
Bxf3 {[%clk 0:01:57.4]} 14... Ngxe5 {[%clk 0:02:45.8]} 15. Bxc6 {[%clk
0:01:39.9]} 15... Nxc6 {[%clk 0:02:46.7]} 16. Bf4 {[%clk 0:01:38.7]} 16... Rac8
{[%clk 0:02:45.2]} 17. Nd2 {[%clk 0:01:36.6]} 17... Rfe8 {[%clk 0:02:39.7]} 18.
Rad1 {[%clk 0:01:35.3]} 18... Nd8 {[%clk 0:02:31.4]} 19. Bg3 {[%clk 0:01:24.1]}
19... Ne6 {[%clk 0:02:31.3]} 20. Nf3 {[%clk 0:01:21.9]} 20... Rcd8 {[%clk
0:02:29.4]} 21. Kf1 {[%clk 0:01:22.3]} 21... Kf8 {[%clk 0:02:25.5]} 22. Ne5
{[%clk 0:01:13.9]} 22... f6 {[%clk 0:02:10.6]} 23. Nc4 {[%clk 0:01:06.8]} 23...
Kf7 {[%clk 0:02:10.1]} 24. Na5 {[%clk 0:01:05.7]} 24... Rxd1 {[%clk 0:01:34.7]}
25. Rxd1 {[%clk 0:01:05.8]} 25... Rb8 {[%clk 0:01:16.5]} 26. Ke2 {[%clk
0:00:59.4]} 26... h5 {[%clk 0:01:09.6]} 27. f3 {[%clk 0:00:53.6]} 27... Ke8
{[%clk 0:01:05.8]} 28. Nb3 {[%clk 0:00:47.6]} 28... b6 {[%clk 0:00:56.3]} 29.
Nd4 {[%clk 0:00:46.3]} 29... Nxd4+ {[%clk 0:00:56.2]} 30. Rxd4 {[%clk
0:00:47.2]} 30... Rc8 {[%clk 0:00:52.1]} 31. a4 {[%clk 0:00:41.1]} 31... c5
{[%clk 0:00:50.6]} 32. Re4 {[%clk 0:00:39.1]} 32... Kf7 {[%clk 0:00:49.5]} 33.
Kd3 {[%clk 0:00:35.5]} 33... b5 {[%clk 0:00:41.6]} 34. axb5 {[%clk 0:00:34.1]}
34... axb5 {[%clk 0:00:42.5]} 35. Kc2 {[%clk 0:00:33]} 35... Rd8 {[%clk
0:00:37]} 36. Re2 {[%clk 0:00:29.3]} 36... Ra8 {[%clk 0:00:29.2]} 37. Rd2 {[%clk
0:00:27.8]} 37... Ra1 {[%clk 0:00:26]} 38. Rd1 {[%clk 0:00:24.4]} 38... Rxd1
{[%clk 0:00:25.7]} 39. Kxd1 {[%clk 0:00:25.3]} 39... Ke6 {[%clk 0:00:26.4]} 40.
b3 {[%clk 0:00:24.1]} 40... Kd5 {[%clk 0:00:25.8]} 41. Ke2 {[%clk 0:00:22.5]}
41... c4 {[%clk 0:00:23.5]} 42. b4 {[%clk 0:00:22.7]} 42... f5 {[%clk
0:00:23.5]} 43. Bf2 {[%clk 0:00:16.5]} 43... Bf6 {[%clk 0:00:23.9]} 44. Kd2
{[%clk 0:00:16.9]} 44... Bg5+ {[%clk 0:00:24.2]} 45. Be3 {[%clk 0:00:14.8]}
45... Bf6 {[%clk 0:00:24.1]} 46. Bf2 {[%clk 0:00:09]} 46... g5 {[%clk
0:00:23.7]} 47. Be3 {[%clk 0:00:07.2]} 47... g4 {[%clk 0:00:22.3]} 48. Kc2
{[%clk 0:00:06.2]} 48... Bg7 {[%clk 0:00:14.8]} 49. Kd2 {[%clk 0:00:06.4]} 49...
Be5 {[%clk 0:00:15.3]} 50. Kc2 {[%clk 0:00:06.2]} 50... Bg3 {[%clk 0:00:15.7]}
51. hxg4 {[%clk 0:00:06.2]} 51... hxg4 {[%clk 0:00:15.9]} 52. Kd2 {[%clk
0:00:05]} 52... Bh4 {[%clk 0:00:15.8]} 53. Kc2 {[%clk 0:00:03.3]} 53... Be1
{[%clk 0:00:15.7]} 54. Bc5 {[%clk 0:00:02.2]} 54... Ke5 {[%clk 0:00:15.1]} 55.
Be3 {[%clk 0:00:02.2]} 55... gxf3 {[%clk 0:00:06.1]} 56. gxf3 {[%clk 0:00:02.3]}
56... f4 {[%clk 0:00:06.8]} 57. Bd4+ {[%clk 0:00:01.9]} 57... Kf5 {[%clk
0:00:07.1]} 58. Kd1 {[%clk 0:00:01.7]} 58... Bg3 {[%clk 0:00:07.4]} 59. Ke2
{[%clk 0:00:02.2]} 59... Kg5 {[%clk 0:00:08.1]} 60. Kf1 {[%clk 0:00:02.6]} 60...
Kh4 {[%clk 0:00:08.8]} 61. Kg2 {[%clk 0:00:03.1]} 61... Be1 {[%clk 0:00:09.7]}
62. Be5 {[%clk 0:00:02.7]} 62... Kg5 {[%clk 0:00:10.4]} 63. Bd4 {[%clk
0:00:03.2]} 63... Kf5 {[%clk 0:00:11.3]} 64. Kf1 {[%clk 0:00:03]} 64... Bd2
{[%clk 0:00:11.3]} 65. Ke2 {[%clk 0:00:03.6]} 65... Bc1 {[%clk 0:00:11.9]} 66.
Kd1 {[%clk 0:00:04.2]} 66... Be3 {[%clk 0:00:09.8]} 67. Bg7 {[%clk 0:00:03.7]}
67... Kg5 {[%clk 0:00:09.5]} 68. Ke2 {[%clk 0:00:03.7]} 68... Kh4 {[%clk
0:00:09.6]} 69. Be5 {[%clk 0:00:03]} 69... Kg3 {[%clk 0:00:09.4]} 70. Bd6 {[%clk
0:00:03.5]} 70... Bc1 {[%clk 0:00:09.4]} 71. Be5 {[%clk 0:00:03.6]} 71... Kg2
{[%clk 0:00:07.1]} 72. Bd6 {[%clk 0:00:03.6]} 72... Be3 {[%clk 0:00:06.8]} 73.
Be5 {[%clk 0:00:03.9]} 73... Kg3 {[%clk 0:00:07.5]} 74. Bd6 {[%clk 0:00:04.1]}
74... Bb6 {[%clk 0:00:07.3]} 75. Be5 {[%clk 0:00:04.5]} 75... Bd8 {[%clk
0:00:07.9]} 76. Bd4 {[%clk 0:00:04.2]} 76... Be7 {[%clk 0:00:08.2]} 77. Be5
{[%clk 0:00:03.7]} 77... Bf8 {[%clk 0:00:08.8]} 78. Bd4 {[%clk 0:00:03.4]} 78...
Bd6 {[%clk 0:00:09.5]} 79. Bf6 {[%clk 0:00:03.4]} 79... Bc7 {[%clk 0:00:09.3]}
80. Bd4 {[%clk 0:00:03.7]} 80... Bd8 {[%clk 0:00:09.5]} 81. Be5 {[%clk
0:00:03.6]} 81... Bb6 {[%clk 0:00:06.5]} 82. Bf6 {[%clk 0:00:02.6]} 82... Be3
{[%clk 0:00:06.6]} 83. Bg7 {[%clk 0:00:02.7]} 83... Kh3 {[%clk 0:00:06.9]} 84.
Bf6 {[%clk 0:00:02.9]} 84... Ba7 {[%clk 0:00:05.6]} 85. Bg7 {[%clk 0:00:03.1]}
85... Bb8 {[%clk 0:00:05.6]} 86. Bf6 {[%clk 0:00:03.3]} 86... Bd6 {[%clk
0:00:05.8]} 87. Bg7 {[%clk 0:00:03.5]} 87... Be7 {[%clk 0:00:06]} 88. Bd4 {[%clk
0:00:03.8]} 88... Bf8 {[%clk 0:00:05.6]} 89. Be5 {[%clk 0:00:04.1]} 89... Bh6
{[%clk 0:00:05.8]} 90. Bf6 {[%clk 0:00:04.2]} 90... Kg3 {[%clk 0:00:05.3]} 91.
Bd4 {[%clk 0:00:04.5]} 91... Bg5 {[%clk 0:00:05.1]} 92. Be5 {[%clk 0:00:04.8]}
92... Be7 {[%clk 0:00:05.3]} 93. Bd4 {[%clk 0:00:05.1]} 93... Bd6 {[%clk
0:00:05.7]} 94. Bf6 {[%clk 0:00:05.4]} 94... Bf8 {[%clk 0:00:05.9]} 95. Bd4
{[%clk 0:00:05.7]} 95... Bh6 {[%clk 0:00:06]} 96. Bh8 {[%clk 0:00:05.9]} 96...
Bg5 {[%clk 0:00:06]} 97. Bd4 {[%clk 0:00:06.1]} 97... Bd8 {[%clk 0:00:04.8]} 98.
Be5 {[%clk 0:00:06.4]} 98... Bb6 {[%clk 0:00:05.1]} 99. Bf6 {[%clk 0:00:06.7]}
99... Ba7 {[%clk 0:00:04.7]} 100. Bg7 {[%clk 0:00:06.8]} 100... Kh4 {[%clk
0:00:03.4]} 101. Be5 {[%clk 0:00:06.4]} 101... Be3 {[%clk 0:00:03.1]} 102. Bf6+
{[%clk 0:00:06.7]} 102... Kh5 {[%clk 0:00:02.6]} 103. Be5 {[%clk 0:00:07.3]}
103... Kg5 {[%clk 0:00:02.8]} 104. Bd6 {[%clk 0:00:06.9]} 104... Kh4 {[%clk
0:00:03]} 105. Be5 {[%clk 0:00:04.8]} 105... Kh3 {[%clk 0:00:03.3]} 106. Bd6
{[%clk 0:00:04.9]} 106... Bc1 {[%clk 0:00:03.8]} 1/2-1/2

[Event "Early-Titled-Tuesday-Blitz-October-17-2023"]
[Site "Chess.com"]
[Date "2023.10.17"]
[Round "5"]
[White "subham777"]
[Black "carokannlover213"]
[Result "1/2-1/2"]
[WhiteElo "2546"]
[BlackElo "2719"]
[TimeControl "180+1"]
[EndTime "8:52:03 PDT"]
[Termination "Game drawn by agreement"]

1. e4 {[%clk 0:03:00.9]} 1... c5 {[%clk 0:02:59]} 2. Nf3 {[%clk 0:03:00.4]} 2...
d6 {[%clk 0:02:58.7]} 3. d4 {[%clk 0:03:00.3]} 3... cxd4 {[%clk 0:02:59.6]} 4.
Qxd4 {[%clk 0:02:58.9]} 4... Nf6 {[%clk 0:02:59.8]} 5. e5 {[%clk 0:02:59]} 5...
Nc6 {[%clk 0:02:54.8]} 6. Bb5 {[%clk 0:02:57.6]} 6... Qa5+ {[%clk 0:02:55.3]} 7.
Nc3 {[%clk 0:02:57.4]} 7... Qxb5 {[%clk 0:02:45]} 8. Nxb5 {[%clk 0:02:58.3]}
8... Nxd4 {[%clk 0:02:45.4]} 9. Nbxd4 {[%clk 0:02:59.2]} 9... dxe5 {[%clk
0:02:44.2]} 10. Nxe5 {[%clk 0:03:00.1]} 10... a6 {[%clk 0:02:33.5]} 1/2-1/2

[Event "Early-Titled-Tuesday-Blitz-October-17-2023"]
[Site "Chess.com"]
[Date "2023.10.17"]
[Round "5"]
[White "Rutricks"]
[Black "Hrant_ChessMood"]
[Result "0-1"]
[WhiteElo "2663"]
[BlackElo "2940"]
[TimeControl "180+1"]
[EndTime "8:52:14 PDT"]
[Termination "Hrant_ChessMood won by resignation"]

1. b3 {[%clk 0:03:00.9]} 1... d5 {[%clk 0:02:50.9]} 2. Bb2 {[%clk 0:03:01.5]}
2... c5 {[%clk 0:02:51.2]} 3. Nf3 {[%clk 0:03:01.5]} 3... Nc6 {[%clk 0:02:50]}
4. e3 {[%clk 0:03:01.7]} 4... a6 {[%clk 0:02:47.4]} 5. d4 {[%clk 0:02:56.7]}
5... Nf6 {[%clk 0:02:47.8]} 6. dxc5 {[%clk 0:02:55.2]} 6... Bg4 {[%clk
0:02:46.9]} 7. c4 {[%clk 0:02:56.1]} 7... e6 {[%clk 0:02:46.2]} 8. h3 {[%clk
0:02:55.7]} 8... Bxf3 {[%clk 0:02:45]} 9. Qxf3 {[%clk 0:02:55.6]} 9... Bxc5
{[%clk 0:02:45]} 10. Be2 {[%clk 0:02:54.4]} 10... Bb4+ {[%clk 0:02:43.3]} 11.
Nc3 {[%clk 0:02:32.1]} 11... Ne4 {[%clk 0:02:39.5]} 0-1

[Event "Early-Titled-Tuesday-Blitz-October-17-2023"]
[Site "Chess.com"]
[Date "2023.10.17"]
[Round "5"]
[White "Herman-NY"]
[Black "Magila31"]
[Result "1-0"]
[WhiteElo "2546"]
[BlackElo "2373"]
[TimeControl "180+1"]
[EndTime "8:52:22 PDT"]
[Termination "Herman-NY won by resignation"]

1. e4 {[%clk 0:03:00.9]} 1... e5 {[%clk 0:02:59.1]} 2. Nf3 {[%clk 0:03:01.1]}
2... Nc6 {[%clk 0:02:58.4]} 3. Bb5 {[%clk 0:03:01.8]} 3... Nf6 {[%clk
0:02:57.7]} 4. d3 {[%clk 0:03:01.9]} 4... Bc5 {[%clk 0:02:55.1]} 5. c3 {[%clk
0:03:01.9]} 5... O-O {[%clk 0:02:53.6]} 6. Bg5 {[%clk 0:03:00.3]} 6... h6 {[%clk
0:02:52.2]} 7. Bh4 {[%clk 0:03:00.7]} 7... Be7 {[%clk 0:02:49.4]} 8. Bg3 {[%clk
0:03:00.1]} 8... d6 {[%clk 0:02:48.5]} 9. Nbd2 {[%clk 0:02:58.6]} 9... Nh5
{[%clk 0:02:41.1]} 10. Bxc6 {[%clk 0:02:39.7]} 10... Nxg3 {[%clk 0:02:34.8]} 11.
Bxb7 {[%clk 0:02:21.7]} 11... Bxb7 {[%clk 0:02:26.9]} 12. hxg3 {[%clk
0:02:21.2]} 12... f5 {[%clk 0:02:23.6]} 13. Qb3+ {[%clk 0:02:20.8]} 1-0

[Event "Early-Titled-Tuesday-Blitz-October-17-2023"]
[Site "Chess.com"]
[Date "2023.10.17"]
[Round "5"]
[White "DreamsAreFake"]
[Black "profedechess93"]
[Result "1-0"]
[WhiteElo "2747"]
[BlackElo "2607"]
[TimeControl "180+1"]
[EndTime "8:53:20 PDT"]
[Termination "DreamsAreFake won by resignation"]

1. Nf3 {[%clk 0:02:57.6]} 1... d5 {[%clk 0:03:00]} 2. g3 {[%clk 0:02:57.6]} 2...
Nf6 {[%clk 0:03:00.3]} 3. Bg2 {[%clk 0:02:58.3]} 3... c6 {[%clk 0:03:01]} 4. O-O
{[%clk 0:02:59]} 4... g6 {[%clk 0:03:01.9]} 5. d4 {[%clk 0:02:59.1]} 5... Bg7
{[%clk 0:03:02.4]} 6. c3 {[%clk 0:02:59.9]} 6... O-O {[%clk 0:03:02.8]} 7. a4
{[%clk 0:02:59.2]} 7... a5 {[%clk 0:03:01.5]} 8. Nbd2 {[%clk 0:02:58.9]} 8...
Ne4 {[%clk 0:03:00.8]} 9. Nxe4 {[%clk 0:02:52.2]} 9... dxe4 {[%clk 0:03:01.7]}
10. Nd2 {[%clk 0:02:47.8]} 10... f5 {[%clk 0:03:01.6]} 11. f3 {[%clk 0:02:48.2]}
11... exf3 {[%clk 0:02:56.8]} 12. exf3 {[%clk 0:02:46.5]} 12... e5 {[%clk
0:02:56.1]} 13. dxe5 {[%clk 0:02:46.5]} 13... Bxe5 {[%clk 0:02:56.8]} 14. Nc4
{[%clk 0:02:47]} 14... Bc7 {[%clk 0:02:48.2]} 15. Bh6 {[%clk 0:02:43.2]} 15...
Re8 {[%clk 0:02:35.7]} 16. Re1 {[%clk 0:02:24.8]} 16... Be6 {[%clk 0:02:23.6]}
17. Qxd8 {[%clk 0:02:23]} 17... Bxd8 {[%clk 0:02:22.4]} 18. Nd6 {[%clk
0:02:23.7]} 18... Re7 {[%clk 0:02:16.9]} 19. Bg5 {[%clk 0:02:19.3]} 19... Rd7
{[%clk 0:02:01.3]} 20. Bxd8 {[%clk 0:02:06]} 20... Rxd6 {[%clk 0:01:59.5]} 21.
Bc7 {[%clk 0:02:05.3]} 1-0

[Event "Early-Titled-Tuesday-Blitz-October-17-2023"]
[Site "Chess.com"]
[Date "2023.10.17"]
[Round "5"]
[White "Logman74"]
[Black "chess_blitz00"]
[Result "0-1"]
[WhiteElo "2425"]
[BlackElo "2564"]
[TimeControl "180+1"]
[EndTime "8:53:58 PDT"]
[Termination "chess_blitz00 won by resignation"]

1. e4 {[%clk 0:03:00.9]} 1... d6 {[%clk 0:02:59]} 2. d4 {[%clk 0:03:00.3]} 2...
Nf6 {[%clk 0:02:59.5]} 3. Nc3 {[%clk 0:02:59.3]} 3... e5 {[%clk 0:02:59.9]} 4.
Nf3 {[%clk 0:02:58.1]} 4... Nbd7 {[%clk 0:02:57.9]} 5. Bc4 {[%clk 0:02:57.8]}
5... Be7 {[%clk 0:02:56.7]} 6. O-O {[%clk 0:02:58.3]} 6... O-O {[%clk
0:02:55.1]} 7. Qe2 {[%clk 0:02:58.7]} 7... c6 {[%clk 0:02:52.5]} 8. a4 {[%clk
0:02:59.2]} 8... a5 {[%clk 0:02:52.3]} 9. Rd1 {[%clk 0:02:59.2]} 9... Qc7 {[%clk
0:02:52.4]} 10. Bg5 {[%clk 0:02:57.9]} 10... h6 {[%clk 0:02:50.1]} 11. Bh4
{[%clk 0:02:55.5]} 11... Re8 {[%clk 0:02:49.4]} 12. dxe5 {[%clk 0:02:53.9]}
12... Nxe5 {[%clk 0:02:42]} 13. Nxe5 {[%clk 0:02:45.4]} 13... dxe5 {[%clk
0:02:42.9]} 14. Bg3 {[%clk 0:02:40.7]} 14... Bc5 {[%clk 0:02:31.7]} 15. h3
{[%clk 0:02:30.4]} 15... Be6 {[%clk 0:02:27.6]} 16. Bxe6 {[%clk 0:02:26.5]}
16... Rxe6 {[%clk 0:02:28.5]} 17. Qc4 {[%clk 0:02:26.2]} 17... Qb6 {[%clk
0:02:19.2]} 18. Rd2 {[%clk 0:02:03.8]} 18... Bd4 {[%clk 0:02:18.3]} 19. Rad1
{[%clk 0:01:52.7]} 19... Qxb2 {[%clk 0:02:07.4]} 20. Rb1 {[%clk 0:01:40.6]}
20... Qxc3 {[%clk 0:02:05.5]} 0-1

[Event "Early-Titled-Tuesday-Blitz-October-17-2023"]
[Site "Chess.com"]
[Date "2023.10.17"]
[Round "5"]
[White "DanyKopy"]
[Black "Fore_Man"]
[Result "1-0"]
[WhiteElo "2538"]
[BlackElo "2334"]
[TimeControl "180+1"]
[EndTime "8:54:36 PDT"]
[Termination "DanyKopy won by resignation"]

1. d4 {[%clk 0:03:00.9]} 1... Nf6 {[%clk 0:02:59.9]} 2. Nf3 {[%clk 0:02:59.9]}
2... e6 {[%clk 0:02:59.9]} 3. c4 {[%clk 0:02:59.6]} 3... d5 {[%clk 0:03:00]} 4.
Nc3 {[%clk 0:02:59.8]} 4... c5 {[%clk 0:02:56.6]} 5. cxd5 {[%clk 0:02:57.7]}
5... Nxd5 {[%clk 0:02:53.6]} 6. e4 {[%clk 0:02:57.1]} 6... Nxc3 {[%clk
0:02:53.8]} 7. bxc3 {[%clk 0:02:58]} 7... cxd4 {[%clk 0:02:54.2]} 8. cxd4 {[%clk
0:02:58.9]} 8... Bb4+ {[%clk 0:02:51.7]} 9. Bd2 {[%clk 0:02:59.1]} 9... Bxd2+
{[%clk 0:02:52.2]} 10. Qxd2 {[%clk 0:03:00]} 10... O-O {[%clk 0:02:52.3]} 11.
Bc4 {[%clk 0:02:56.4]} 11... Nc6 {[%clk 0:02:51.3]} 12. O-O {[%clk 0:02:55.8]}
12... Qe7 {[%clk 0:02:47.6]} 13. Rfd1 {[%clk 0:02:54]} 13... b6 {[%clk
0:02:47.1]} 14. a4 {[%clk 0:02:53.2]} 14... Bb7 {[%clk 0:02:46.8]} 15. Qb2
{[%clk 0:02:43.3]} 15... Na5 {[%clk 0:02:46.3]} 16. Bd3 {[%clk 0:02:42.2]} 16...
Rac8 {[%clk 0:02:45.4]} 17. Rdc1 {[%clk 0:02:30.9]} 17... Qd7 {[%clk 0:02:42.6]}
18. Ne5 {[%clk 0:02:28.6]} 18... Qd6 {[%clk 0:02:42]} 19. Bb5 {[%clk 0:02:21.1]}
19... Bxe4 {[%clk 0:02:37.8]} 20. Re1 {[%clk 0:01:38.3]} 20... Bb7 {[%clk
0:02:34.4]} 21. Ra3 {[%clk 0:01:37.6]} 21... Qd5 {[%clk 0:02:32.6]} 22. Rg3
{[%clk 0:01:35.6]} 22... f6 {[%clk 0:02:27.7]} 23. Nd3 {[%clk 0:01:30.8]} 23...
Nc4 {[%clk 0:02:22.6]} 24. Qe2 {[%clk 0:01:30.2]} 24... Qxd4 {[%clk 0:02:12.8]}
25. Qxe6+ {[%clk 0:01:29]} 25... Kh8 {[%clk 0:02:10.8]} 26. Qe7 {[%clk
0:01:25.3]} 26... Rg8 {[%clk 0:01:57.7]} 27. Qxb7 {[%clk 0:01:23.2]} 27... Nd6
{[%clk 0:01:58.4]} 28. Qxa7 {[%clk 0:01:19]} 28... Nxb5 {[%clk 0:01:58.8]} 29.
axb5 {[%clk 0:01:18.9]} 29... Rc3 {[%clk 0:01:59.3]} 30. Qxg7+ {[%clk
0:01:09.5]} 30... Rxg7 {[%clk 0:01:57.9]} 31. Re8+ {[%clk 0:01:09.3]} 1-0